Workbook

Sheet 算法关系表
B1: 人设——行为算法 | G1: 行为——功能模块算法
A3: 人群占比 | B3: 人群分类 | C3: 数据项-行为兴趣 | D3: 原始数值 | E3: 标准化值 | G3: 关联模块1 | H3: 权重值 | I3: 关联模块2 | J3: 权重值 | K3: 关联模块3 | L3: 权重值 | M3: 关联模块4 | N3: 权重值 | O3: 关联模块5 | P3: 权重值
A4: 0.16 | B4: A | C4: 养猫 | E4: 0.1666666667 | G4: 宠物模块 | H4: 1
C5: 看影视 | E5: 0.1333333333 | G5: 影音模块 | H5: 1 | I5: 休闲模块 | J5: 0.5
C6: 阅读 | E6: 0.12 | G6: 工作学习模块 | H6: 1 | I6: 收纳模块 | J6: 0.5 | K6: 休闲模块 | L6: 0.5
C7: 喝咖啡 | E7: 0.1066666667 | G7: 酒水茶模块 | H7: 1
C8: 小憩 | E8: 0.1 | G8: 休闲模块 | H8: 1 | I8: 睡眠模块 | J8: 0.5
C9: 玩电脑游戏 | E9: 0.09333333333 | G9: 影音模块 | H9: 1 | I9: 休闲模块 | J9: 0.5
C10: 平板塑形 | E10: 0.08666666667 | G10: 健身模块 | H10: 1 | I10: 影音模块 | J10: 0.5 | K10: 休闲模块 | L10: 0.5 | M10: 洗浴模块 | N10: 0.5 | O10: 更衣模块 | P10: 0.5
C11: 插花 | E11: 0.08 | G11: 手工模块 | H11: 1 | I11: 收纳模块 | J11: 0.5 | K11: 展示模块 | L11: 0.5
C12: 工作学习 | E12: 0.05333333333 | G12: 工作学习模块 | H12: 1 | I12: 收纳模块 | J12: 0.5 | K12: 休闲模块 | L12: 0.5
C13: 打扫清洁 | E13: 0.06 | G13: 家政模块 | H13: 1 | I13: 收纳模块 | J13: 0.5
A14: 0.13 | B14: B | C14: 玩电脑游戏 | E14: 0.1666666667 | G14: 影音模块 | H14: 1 | I14: 休闲模块 | J14: 0.5
C15: 工作学习 | E15: 0.1333333333 | G15: 工作学习模块 | H15: 1
C16: 看影视 | E16: 0.1533333333 | G16: 影音模块 | H16: 1 | I16: 休闲模块 | J16: 0.5
C17: 喝咖啡 | E17: 0.08666666667 | G17: 酒水茶模块 | H17: 1
C18: 聚会 | E18: 0.1 | G18: 休闲模块 | H18: 1 | I18: 餐食模块 | J18: 0.5 | K18: 烹饪模块 | L18: 0.5 | M18: 酒水茶模块 | N18: 0.5 | O18: 影音模块 | P18: 0.5
C19: 直播 | E19: 0.12 | G19: 影音模块 | H19: 1
C20: 收藏 | E20: 0.03333333333 | G20: 展示模块 | H20: 1 | I20: 收纳模块 | J20: 0.5
C21: 收纳 | E21: 0.1066666667 | G21: 收纳模块 | H21: 1
C22: 做模型 | E22: 0.02 | G22: 手工模块 | H22: 1 | I22: 收纳模块 | J22: 0.5 | K22: 展示模块 | L22: 0.5
C23: 小憩 | E23: 0.08 | G23: 休闲模块 | H23: 1 | I23: 睡眠模块 | J23: 0.5
A24: 0.17 | B24: C | C24: 平板塑形 | E24: 0.1420454545 | G24: 健身模块 | H24: 1 | I24: 影音模块 | J24: 0.5 | K24: 休闲模块 | L24: 0.5 | M24: 洗浴模块 | N24: 0.5 | O24: 更衣模块 | P24: 0.5
C25: 大器械健身 | E25: 0.1136363636 | G25: 健身模块 | H25: 1 | I25: 影音模块 | J25: 0.5 | K25: 休闲模块 | L25: 0.5 | M25: 洗浴模块 | N25: 0.5 | O25: 更衣模块 | P25: 0.5
C26: 跑步 | E26: 0.125 | G26: 运动模块 | H26: 1 | I26: 洗浴模块 | J26: 0.5 | K26: 更衣模块 | L26: 0.5
C27: 打篮球 | E27: 0.04545454545 | G27: 运动模块 | H27: 1 | I27: 洗浴模块 | J27: 0.5 | K27: 更衣模块 | L27: 0.5
C28: 游泳 | E28: 0.1022727273 | G28: 运动模块 | H28: 1 | I28: 洗浴模块 | J28: 0.5 | K28: 更衣模块 | L28: 0.5
C29: 淋浴 | E29: 0.1306818182 | G29: 洗浴模块 | H29: 1
C30: 做西餐 | E30: 0.1079545455 | G30: 烹饪模块 | H30: 1
C31: 就餐 | E31: 0.05681818182 | G31: 餐食模块 | H31: 1 | I31: 休闲模块 | J31: 0.5
C32: 仪容仪表 | E32: 0.1022727273 | G32: 更衣模块 | H32: 1 | I32: 收纳模块 | J32: 0.5 | K32: 洗漱模块 | L32: 0.5
C33: 睡觉 | E33: 0.07386363636 | G33: 睡眠模块 | H33: 1
A34: 0.18 | B34: D | C34: 仪容仪表 | E34: 0.1420454545 | G34: 更衣模块 | H34: 1 | I34: 收纳模块 | J34: 0.5 | K34: 洗漱模块 | L34: 0.5
C35: 美妆 | E35: 0.1136363636 | G35: 收纳模块 | H35: 1 | I35: 更衣模块 | J35: 0.5 | K35: 洗漱模块 | L35: 0.5
C36: 收纳 | E36: 0.125 | G36: 收纳模块 | H36: 1
C37: 直播 | E37: 0.04545454545 | G37: 影音模块 | H37: 1
C38: 洗漱 | E38: 0.1022727273 | G38: 洗漱模块 | H38: 1
C39: 美容护肤 | E39: 0.1306818182 | G39: 收纳模块 | H39: 1 | I39: 洗漱模块 | J39: 0.5
C40: 泡澡 | E40: 0.1079545455 | G40: 洗浴模块 | H40: 1
C41: 平板塑形 | E41: 0.05681818182 | G41: 健身模块 | H41: 1 | I41: 影音模块 | J41: 0.5 | K41: 休闲模块 | L41: 0.5 | M41: 洗浴模块 | N41: 0.5 | O41: 更衣模块 | P41: 0.5
C42: 睡觉 | E42: 0.1022727273 | G42: 睡眠模块 | H42: 1
C43: 跑步 | E43: 0.07386363636 | G43: 运动模块 | H43: 1 | I43: 洗浴模块 | J43: 0.5 | K43: 更衣模块 | L43: 0.5
A44: 0.2 | B44: E | C44: 睡眠 | E44: 0.1420454545 | G44: 睡眠模块 | H44: 1
C45: 看影视 | E45: 0.1136363636 | G45: 影音模块 | H45: 1 | I45: 休闲模块 | J45: 0.5
C46: 玩电脑游戏 | E46: 0.125 | G46: 影音模块 | H46: 1 | I46: 休闲模块 | J46: 0.5
C47: 阅读 | E47: 0.04545454545 | G47: 工作学习模块 | H47: 1 | I47: 收纳模块 | J47: 0.5 | K47: 休闲模块 | L47: 0.5
C48: 就餐 | E48: 0.1022727273 | G48: 餐食模块 | H48: 1 | I48: 休闲模块 | J48: 0.5
C49: 养猫 | E49: 0.1306818182 | G49: 宠物模块 | H49: 1
C50: 泡澡 | E50: 0.1079545455 | G50: 洗浴模块 | H50: 1
C51: 小憩 | E51: 0.05681818182 | G51: 休闲模块 | H51: 1 | I51: 睡眠模块 | J51: 0.5
C52: 追星 | E52: 0.1022727273 | G52: 影音模块 | H52: 1 | I52: 收纳模块 | J52: 0.5 | K52: 展示模块 | L52: 0.5
C53: 种花 | E53: 0.07386363636 | G53: 园艺模块 | H53: 1 | I53: 展示模块 | J53: 0.5
A54: 0.16 | B54: F | C54: 工作学习 | E54: 0.1533742331 | G54: 工作学习模块 | H54: 1
C55: 仪容仪表 | E55: 0.1226993865 | G55: 更衣模块 | H55: 1 | I55: 收纳模块 | J55: 0.5 | K55: 洗漱模块 | L55: 0.5
C56: 微聚会 | E56: 0.1349693252 | G56: 休闲模块 | H56: 1 | I56: 餐食模块 | J56: 0.5 | K56: 烹饪模块 | L56: 0.5 | M56: 酒水茶模块 | N56: 0.5 | O56: 影音模块 | P56: 0.5
C57: 喝咖啡 | E57: 0.0490797546 | G57: 酒水茶模块 | H57: 1
C58: 看影视 | E58: 0.1104294479 | G58: 影音模块 | H58: 1 | I58: 休闲模块 | J58: 0.5
C59: 跑步 | E59: 0.1411042945 | G59: 运动模块 | H59: 1 | I59: 洗浴模块 | J59: 0.5 | K59: 更衣模块 | L59: 0.5
C60: 洗干熨衣 | E60: 0.1165644172 | G60: 家政模块 | H60: 1 | I60: 收纳模块 | J60: 0.5
C61: 就餐 | E61: 0.06134969325 | G61: 餐食模块 | H61: 1 | I61: 休闲模块 | J61: 0.5
C62: 养猫 | E62: 0.1104294479 | G62: 宠物模块 | H62: 1

Sheet 上海+85后
A1: 上海 | B1: 85后
B2: 人设——行为算法 | I2: 行为——功能模块算法 | T2: 模块——模块关系算法 | AI2: 公区模块算法
B3: 人设标签 | C3: 行为标签 | D3: 权重 | E3: 频次 | F3: 总分 | G3: 标准值 | I3: 直接模块 | J3: 间接模块 | O3: 排名 | P3: 模块标签 | Q3: 总分 | R3: 模块类型 | S3: A-H占比 | AL3: 原值 | AM3: 加权后的值 | AN3: 公区模块 | AO3: 总分 | AP3: 排名 | AQ3: 调取 6 个3d模型
A4: 0.16 | B4: 铲屎官 （A类） | C4: 养猫 | D4: 5 | E4: =F4/D4 -> 5 | F4: 25 | G4: 0.1666666667 | I4: 宠物模块 | O4: B | P4: 休闲模块 | Q4: =J7+K9+I13+J15+K17+K21 -> 0.3433333333 | R4: 直接模块 | S4: =Q4/$Q$17 -> 0.2481927711 | U4: 休闲模块 | V4: 影音模块 | W4: 工作学习模块 | X4: 宠物模块 | Y4: 收纳模块 | Z4: 酒水茶模块 | AA4: 健身模块 | AB4: 手工模块 | AC4: 家政模块 | AD4: 睡眠模块 | AE4: 洗浴模块 | AF4: 更衣模块 | AG4: 展示模块 | AI4: 铲屎官 （A类） | AJ4: =A4 -> 0.16 | AK4: 休闲模块 | AL4: =Q4 -> 0.3433333333 | AM4: =$AJ$4*AL4 -> 0.05493333333 | AN4: 影音模块 | AO4: =AM5+AM17+AM32+AM43+AM47+AM59 -> 0.2285764845 | AP4: 1 | AQ4: (调取3d模型)
I5: =G4 -> 0.1666666667 | O5: C | P5: 影音模块 | Q5: =I7+I15+J17 -> 0.27 | S5: 0.1951807229 | T5: 休闲模块 | AK5: 影音模块 | AL5: 0.27 | AM5: =$AJ$4*AL5 -> 0.0432 | AN5: 休闲模块 | AO5: =AM4+AM18+AM31+AM46+AM48+AM57 -> 0.2124779531 | AP5: 2 | AQ5: (调取3d模型)
C6: 看影视 | D6: 4 | E6: =F6/D6 -> 5 | F6: 20 | G6: 0.1333333333 | I6: 影音模块 | J6: 休闲模块 | O6: D | P6: 工作学习模块 | Q6: =I9+I21 -> 0.1733333333 | S6: 0.1253012048 | T6: 影音模块 | U6: 4 | AK6: 工作学习模块 | AL6: 0.1733333333 | AM6: =$AJ$4*AL6 -> 0.02773333333 | AN6: 收纳模块 | AO6: =AM8+AM21+AM36+AM38+AM52+AM62 -> 0.1650600436 | AP6: 3 | AQ6: (调取3d模型)
I7: =G6 -> 0.1333333333 | J7: =I7/2 -> 0.06666666667 | O7: A | P7: 宠物模块 | Q7: =I5 -> 0.1666666667 | R7: 核心模块 | S7: 0.1204819277 | T7: 工作学习模块 | U7: 4 | V7: 4 | AK7: 宠物模块 | AL7: 0.1666666667 | AM7: =$AJ$4*AL7 -> 0.02666666667 | AN7: 更衣模块 | AO7: =AM15+AM28+AM40+AM58 -> 0.1475183512 | AQ7: (公区没有此模块，跳过)
C8: 阅读 | D8: 4 | E8: =F8/D8 -> 4.5 | F8: 18 | G8: 0.12 | I8: 工作学习模块 | J8: 收纳模块 | K8: 休闲模块 | O8: E | P8: 收纳模块 | Q8: =J9+J19+J21+J23 -> 0.1566666667 | R8: 间接模块 | S8: 0.113253012 | T8: 宠物模块 | U8: 5 | V8: 5 | W8: 5 | AK8: 收纳模块 | AL8: 0.1566666667 | AM8: =$AJ$4*AL8 -> 0.02506666667 | AN8: 洗浴模块 | AO8: =AM14+AM27+AM41+AM53+AM67 -> 0.1396531161 | AP8: 4 | AQ8: (调取3d模型)
I9: =G8 -> 0.12 | J9: 0.06 | K9: 0.06 | O9: F | P9: 酒水茶模块 | Q9: =I11 -> 0.1066666667 | S9: 0.07710843373 | T9: 收纳模块 | U9: 1 | W9: 3 | X9: 3 | AK9: 酒水茶模块 | AL9: 0.1066666667 | AM9: =$AJ$4*AL9 -> 0.01706666667 | AN9: 运动模块 | AO9: =AM29+AM44+AM61 -> 0.08262214159 | AP9: 5 | AQ9: (调取3d模型)
C10: 喝咖啡 | D10: 4.5 | E10: =F10/D10 -> 3.555555556 | F10: 16 | G10: 0.1066666667 | I10: 酒水茶模块 | O10: G | P10: 健身模块 | Q10: =I17 -> 0.08666666667 | S10: 0.06265060241 | T10: 酒水茶模块 | U10: 3 | X10: 3 | AK10: 健身模块 | AL10: 0.08666666667 | AM10: =$AJ$4*AL10 -> 0.01386666667 | AN10: 睡眠模块 | AO10: =AM13+AM25+AM34+AM42+AM49 -> 0.07987272711 | AQ10: (公区没有此模块，跳过)
I11: =G10 -> 0.1066666667 | O11: H | P11: 手工模块 | Q11: =I19 -> 0.08 | S11: 0.0578313253 | T11: 健身模块 | U11: 3 | V11: 3 | X11: 3 | AK11: 手工模块 | AL11: 0.08 | AM11: =$AJ$4*AL11 -> 0.0128 | AN11: 洗漱模块 | AO11: =AM37+AM39+AM69 -> 0.0663841327 | AQ11: (公区没有此模块，跳过)
C12: 小憩 | D12: 3 | E12: =F12/D12 -> 5 | F12: 15 | G12: 0.1 | I12: 休闲模块 | J12: 睡眠模块 | P12: 家政模块 | Q12: =I23 -> 0.06 | R12: 只要A到H 多余去掉 | S12: =SUM(S4:S11) -> 1 | T12: 手工模块 | X12: 3 | Y12: 3 | AK12: 家政模块 | AL12: 0.06 | AM12: =$AJ$4*AL12 -> 0.0096 | AN12: 工作学习模块 | AO12: =AM6+AM20+AM56+AM60 -> 0.07930351355 | AP12: 6 | AQ12: (调取3d模型)
I13: =G12 -> 0.1 | J13: =I13/2 -> 0.05 | P13: 睡眠模块 | Q13: =J13 -> 0.05 | T13: 家政模块 | X13: 2 | AK13: 睡眠模块 | AL13: 0.05 | AM13: =$AJ$4*AL13 -> 0.008 | AN13: 健身模块 | AO13: =AM10+AM30+AM45 -> 0.06755984828
C14: 玩电脑游戏 | D14: 3 | E14: =F14/D14 -> 4.666666667 | F14: 14 | G14: 0.09333333333 | I14: 影音模块 | J14: 休闲模块 | P14: 洗浴模块 | Q14: =L17 -> 0.04333333333 | T14: 睡眠模块 | U14: 1 | X14: 2 | AK14: 洗浴模块 | AL14: 0.04333333333 | AM14: =$AJ$4*AL14 -> 0.006933333333 | AN14: 宠物模块 | AO14: =AM7+AM50+AM65 -> 0.06251719619
I15: =G14 -> 0.09333333333 | J15: =I15/2 -> 0.04666666667 | P15: 更衣模块 | Q15: =M17 -> 0.04333333333 | T15: 洗浴模块 | X15: 2 | AA15: 3 | AD15: 1 | AK15: 更衣模块 | AL15: 0.04333333333 | AM15: =$AJ$4*AL15 -> 0.006933333333 | AN15: 餐食模块 | AO15: =AM22+AM35+AM54+AM63 -> 0.05913167868
C16: 平板塑形 | D16: 4 | E16: =F16/D16 -> 3.25 | F16: 13 | G16: 0.08666666667 | I16: 健身模块 | J16: 影音模块 | K16: 休闲模块 | L16: 洗浴模块 | M16: 更衣模块 | P16: 展示模块 | Q16: =K19 -> 0.04 | T16: 更衣模块 | X16: 2 | AA16: 3 | AE16: 1 | AK16: 展示模块 | AL16: 0.04 | AM16: =$AJ$4*AL16 -> 0.0064 | AN16: 酒水茶模块 | AO16: =AM9+AM19+AM66 -> 0.05348363997
I17: =G16 -> 0.08666666667 | J17: =I17/2 -> 0.04333333333 | K17: =J17 -> 0.04333333333 | L17: =K17 -> 0.04333333333 | M17: =L17 -> 0.04333333333 | P17: A-H 总分合计 | Q17: =SUM(Q4:Q11) -> 1.383333333 | T17: 展示模块 | X17: 2 | Y17: 1 | AB17: 3 | AI17: 游戏咖 （B类） | AJ17: 0.13 | AK17: 影音模块 | AL17: =Q25 -> 0.49 | AM17: =$AJ$17*AL17 -> 0.0637 | AN17: 烹饪模块 | AO17: =AM23+AM33+AM68 -> 0.035997546
C18: 插花 | D18: 3 | E18: =F18/D18 -> 4 | F18: 12 | G18: 0.08 | I18: 手工模块 | J18: 收纳模块 | K18: 展示模块 | AK18: 休闲模块 | AL18: 0.34 | AM18: 0.0442 | AN18: 展示模块 | AO18: =AM16+AM24+AM51 -> 0.03627575753 | AQ18: (公区没有此模块)
I19: =G18 -> 0.08 | J19: =I19/2 -> 0.04 | K19: =J19 -> 0.04 | AK19: 酒水茶模块 | AL19: 0.1366666667 | AM19: 0.01776666667 | AN19: 家政模块 | AO19: =AM12+AM64 -> 0.02825030672 | AQ19: (公区没有此模块)
C20: 工作学习 | D20: 3 | E20: =F20/D20 -> 2.666666667 | F20: 8 | G20: 0.05333333333 | I20: 工作学习模块 | J20: 收纳模块 | K20: 休闲模块 | AK20: 工作学习模块 | AL20: 0.1333333333 | AM20: 0.01733333333 | AN20: 园艺模块 | AO20: =AM55 -> 0.0266666666
I21: =G20 -> 0.05333333333 | J21: =I21/2 -> 0.02666666667 | K21: =J21 -> 0.02666666667 | AK21: 收纳模块 | AL21: 0.1333333333 | AM21: 0.01733333333 | AN21: 手工模块 | AO21: =AM11+AM26 -> 0.0154 | AQ21: (公区没有此模块)
C22: 打扫清洁 | D22: 3 | E22: =F22/D22 -> 3 | F22: 9 | G22: 0.06 | I22: 家政模块 | J22: 收纳模块 | AK22: 餐食模块 | AL22: 0.05 | AM22: 0.0065
I23: =G22 -> 0.06 | J23: =I23/2 -> 0.03 | AK23: 烹饪模块 | AL23: 0.05 | AM23: 0.0065
AK24: 展示模块 | AL24: 0.04333333333 | AM24: 0.005633333333
A25: 0.13 | B25: 游戏咖 （B类） | C25: 玩电脑游戏 | D25: 5 | E25: =F25/D25 -> 5 | F25: 25 | G25: 0.1666666667 | I25: 影音模块 | J25: 休闲模块 | O25: A | P25: 影音模块 | Q25: =I26+I30+M34+I36 -> 0.49 | R25: 核心模块 | S25: =Q25/$Q$35 -> 0.3559322034 | U25: 影音模块 | V25: 休闲模块 | W25: 酒水茶模块 | X25: 工作学习模块 | Y25: 收纳模块 | Z25: 餐食模块 | AA25: 烹饪模块 | AB25: 展示模块 | AC25: 睡眠模块 | AD25: 手工模块 | AK25: 睡眠模块 | AL25: 0.04 | AM25: 0.0052
I26: =G25 -> 0.1666666667 | J26: =I26/2 -> 0.08333333333 | O26: B | P26: 休闲模块 | Q26: =J26+J30+I34+I44 -> 0.34 | R26: 直接模块 | S26: 0.2469733656 | T26: 影音模块 | AK26: 手工模块 | AL26: 0.02 | AM26: 0.0026
C27: 工作学习 | D27: 4 | E27: =F27/D27 -> 5 | F27: 20 | G27: 0.1333333333 | I27: 工作学习模块 | O27: C | P27: 酒水茶模块 | Q27: =I32+L34 -> 0.1366666667 | S27: 0.09927360775 | T27: 休闲模块 | U27: 5 | AI27: 健身达人 （C类） | AJ27: 0.17 | AK27: 洗浴模块 | AL27: =Q46 -> 0.3953409085 | AM27: =$AJ$27*AL27 -> 0.06720795444
I28: =G27 -> 0.1333333333 | O28: D | P28: 工作学习模块 | Q28: =I28 -> 0.1333333333 | S28: 0.09685230024 | T28: 酒水茶模块 | U28: 5 | V28: 4 | AK28: 更衣模块 | AL28: 0.3653409085 | AM28: 0.06210795445
C29: 看影视 | D29: 4 | E29: =F29/D29 -> 5.75 | F29: 23 | G29: 0.1533333333 | I29: 影音模块 | J29: 休闲模块 | O29: E | P29: 收纳模块 | Q29: =J38+I40+J42 -> 0.1333333333 | R29: 间接模块 | S29: 0.09685230024 | T29: 工作学习模块 | U29: 5 | V29: 4 | W29: 4 | AK29: 运动模块 | AL29: 0.275 | AM29: 0.04675
I30: =G29 -> 0.1533333333 | J30: =I30/2 -> 0.07666666667 | O30: F | P30: 餐食模块 | Q30: =J34 -> 0.05 | S30: 0.03631961259 | T30: 收纳模块 | U30: 3 | AK30: 健身模块 | AL30: 0.255681817 | AM30: 0.04346590889
C31: 喝咖啡 | D31: 3 | E31: =F31/D31 -> 4.333333333 | F31: 13 | G31: 0.08666666667 | I31: 酒水茶模块 | O31: G | P31: 烹饪模块 | Q31: =K34 -> 0.05 | S31: 0.03631961259 | T31: 餐食模块 | U31: 3 | V31: 3 | W31: 1 | AK31: 休闲模块 | AL31: 0.1578409085 | AM31: 0.02683295445
I32: =G31 -> 0.08666666667 | O32: H | P32: 展示模块 | Q32: =I38+K42 -> 0.04333333333 | S32: 0.03147699758 | T32: 烹饪模块 | U32: 3 | V32: 3 | W32: 1 | Z32: 1 | AK32: 影音模块 | AL32: 0.1278409085 | AM32: 0.02173295445
C33: 聚会 | D33: 4.5 | E33: =F33/D33 -> 3.333333333 | F33: 15 | G33: 0.1 | I33: 休闲模块 | J33: 餐食模块 | K33: 烹饪模块 | L33: 酒水茶模块 | M33: 影音模块 | P33: 睡眠模块 | Q33: =J44 -> 0.04 | R33: 只要A到H 多余去掉 | S33: =SUM(S25:S32) -> 1 | T33: 展示模块 | U33: 2 | Y33: 3 | AK33: 烹饪模块 | AL33: 0.11 | AM33: 0.0187
I34: =G33 -> 0.1 | J34: =I34/2 -> 0.05 | K34: =J34 -> 0.05 | L34: =K34 -> 0.05 | M34: =L34 -> 0.05 | P34: 手工模块 | Q34: =I42 -> 0.02 | T34: 睡眠模块 | U34: 2 | V34: 3 | AK34: 睡眠模块 | AL34: 0.07 | AM34: 0.0119
C35: 直播 | D35: 4 | E35: =F35/D35 -> 4.5 | F35: 18 | G35: 0.12 | I35: 影音模块 | P35: A-H 总分合计 | Q35: =SUM(Q25:Q32) -> 1.376666667 | T35: 手工模块 | U35: 2 | Y35: 3 | AB35: 3 | AK35: 餐食模块 | AL35: 0.06 | AM35: 0.0102
I36: =G35 -> 0.12 | AK36: 收纳模块 | AL36: 0.05 | AM36: 0.0085
C37: 收藏 | D37: 2 | E37: =F37/D37 -> 2.5 | F37: 5 | G37: 0.03333333333 | I37: 展示模块 | J37: 收纳模块 | AK37: 洗漱模块 | AL37: 0.05 | AM37: 0.0085
I38: =G37 -> 0.03333333333 | J38: =I38/2 -> 0.01666666667 | AI38: 美妆达人 （D类） | AJ38: 0.18 | AK38: 收纳模块 | AL38: =Q67 -> 0.4403409091 | AM38: =$AJ$38*AL38 -> 0.07926136364
C39: 收纳 | D39: 4 | E39: =F39/D39 -> 4 | F39: 16 | G39: 0.1066666667 | I39: 收纳模块 | AK39: 洗漱模块 | AL39: 0.2670454545 | AM39: 0.04806818182
I40: =G39 -> 0.1066666667 | AK40: 更衣模块 | AL40: 0.2642045455 | AM40: 0.04755681818
C41: 做模型 | D41: 2 | E41: =F41/D41 -> 1.5 | F41: 3 | G41: 0.02 | I41: 手工模块 | J41: 收纳模块 | K41: 展示模块 | AK41: 洗浴模块 | AL41: 0.1732954545 | AM41: 0.03119318182
I42: =G41 -> 0.02 | J42: =I42/2 -> 0.01 | K42: =J42 -> 0.01 | AK42: 睡眠模块 | AL42: 0.1022727273 | AM42: 0.01840909091
C43: 小憩 | D43: 3.5 | E43: =F43/D43 -> 3.428571429 | F43: 12 | G43: 0.08 | I43: 休闲模块 | J43: 睡眠模块 | AK43: 影音模块 | AL43: 0.07386363636 | AM43: 0.01329545455
I44: =G43 -> 0.08 | J44: =I44/2 -> 0.04 | AK44: 运动模块 | AL44: 0.07386363636 | AM44: 0.01329545455
AK45: 健身模块 | AL45: 0.05681818182 | AM45: 0.01022727273
A46: 0.17 | B46: 健身达人 （C类） | C46: 平板塑形 | D46: 5 | E46: =F46/D46 -> 5 | F46: 25 | G46: 0.142045454 | I46: 健身模块 | J46: 影音模块 | K46: 休闲模块 | L46: 洗浴模块 | M46: 更衣模块 | O46: B | P46: 洗浴模块 | Q46: =L47+L49+J51+J53+J55+I57 -> 0.3953409085 | R46: 直接模块 | S46: =Q46/$Q$57 -> 0.2250032339 | U46: 洗浴模块 | V46: 更衣模块 | W46: 运动模块 | X46: 健身模块 | Y46: 休闲模块 | Z46: 影音模块 | AA46: 烹饪模块 | AB46: 睡眠模块 | AC46: 餐食模块 | AD46: 收纳模块 | AE46: 洗漱模块 | AK46: 休闲模块 | AL46: 0.02840909091 | AM46: 0.005113636364
I47: =G46 -> 0.142045454 | J47: =I47/2 -> 0.071022727 | K47: =J47 -> 0.071022727 | L47: =K47 -> 0.071022727 | M47: =L47 -> 0.071022727 | O47: C | P47: 更衣模块 | Q47: =M47+M49+K51+K53+K55+I63 -> 0.3653409085 | S47: 0.2079291166 | T47: 洗浴模块 | AI47: 御宅 （E类） | AJ47: 0.2 | AK47: 影音模块 | AL47: =Q88 -> 0.29090909 | AM47: =$AJ$47*AL47 -> 0.058181818
C48: 大器械健身 | D48: 5 | E48: =F48/D48 -> 4 | F48: 20 | G48: 0.113636363 | I48: 健身模块 | J48: 影音模块 | K48: 休闲模块 | L48: 洗浴模块 | M48: 更衣模块 | O48: D | P48: 运动模块 | Q48: =I51+I53+I55 -> 0.275 | S48: 0.1565127412 | T48: 更衣模块 | U48: 4 | AK48: 休闲模块 | AL48: =Q89 -> 0.230303029 | AM48: 0.0460606058
I49: =G48 -> 0.113636363 | J49: =I49/2 -> 0.0568181815 | K49: =J49 -> 0.0568181815 | L49: =K49 -> 0.0568181815 | M49: =L49 -> 0.0568181815 | O49: A | P49: 健身模块 | Q49: =I47+I49 -> 0.255681817 | R49: 核心模块 | S49: 0.1455180439 | T49: 运动模块 | U49: 4 | V49: 4 | AK49: 睡眠模块 | AL49: =Q90 -> 0.181818181 | AM49: 0.0363636362
C50: 跑步 | D50: 5 | E50: =F50/D50 -> 4.4 | F50: 22 | G50: 0.125 | I50: 运动模块 | J50: 洗浴模块 | K50: 更衣模块 | O50: E | P50: 休闲模块 | Q50: =K47+K49+J61 -> 0.1578409085 | R50: 间接模块 | S50: 0.08983313915 | T50: 健身模块 | U50: 5 | V50: 5 | W50: 5 | AK50: 宠物模块 | AL50: =Q95 -> 0.09090909 | AM50: 0.018181818
I51: =G50 -> 0.125 | J51: =I51/2 -> 0.0625 | K51: =J51 -> 0.0625 | O51: F | P51: 影音模块 | Q51: =J47+J49 -> 0.1278409085 | S51: 0.07275902193 | T51: 休闲模块 | U51: 1 | V51: 1 | X51: 3 | AK51: 展示模块 | AL51: =Q92 -> 0.121212121 | AM51: 0.0242424242
C52: 打篮球 | D52: 3 | E52: =F52/D52 -> 2.666666667 | F52: 8 | G52: 0.05 | I52: 运动模块 | J52: 洗浴模块 | K52: 更衣模块 | O52: G | P52: 烹饪模块 | Q52: =I59 -> 0.11 | S52: 0.06260509649 | T52: 影音模块 | U52: 1 | V52: 1 | X52: 3 | AK52: 收纳模块 | AL52: =Q96 -> 0.0787878785 | AM52: 0.0157575757
I53: =G52 -> 0.05 | J53: =I53/2 -> 0.025 | K53: =J53 -> 0.025 | O53: H | P53: 睡眠模块 | Q53: =I65 -> 0.07 | S53: 0.03983960686 | T53: 烹饪模块 | X53: 3 | AK53: 洗浴模块 | AL53: =Q93 -> 0.115151515 | AM53: 0.023030303
C54: 游泳 | D54: 4.2 | E54: =F54/D54 -> 4.285714286 | F54: 18 | G54: 0.1 | I54: 运动模块 | J54: 洗浴模块 | K54: 更衣模块 | P54: 餐食模块 | Q54: =I61 -> 0.06 | R54: 只要A到H 多余去掉 | S54: =SUM(S46:S53) -> 1 | T54: 睡眠模块 | X54: 2 | AK54: 餐食模块 | AL54: =Q94 -> 0.109090909 | AM54: 0.0218181818
I55: =G54 -> 0.1 | J55: =I55/2 -> 0.05 | K55: =J55 -> 0.05 | P55: 收纳模块 | Q55: =J63 -> 0.05 | T55: 餐食模块 | X55: 2 | Y55: 3 | AK55: 园艺模块 | AL55: =Q91 -> 0.133333333 | AM55: 0.0266666666
C56: 淋浴 | D56: 4.6 | E56: =F56/D56 -> 5 | F56: 23 | G56: 0.13 | I56: 洗浴模块 | P56: 洗漱模块 | Q56: =K63 -> 0.05 | T56: 收纳模块 | V56: 3 | X56: 2 | AK56: 工作学习模块 | AL56: =Q97 -> 0.048484848 | AM56: 0.0096969696
I57: =G56 -> 0.13 | P57: A-H 总分合计 | Q57: =SUM(Q46:Q53) -> 1.757045451 | T57: 洗漱模块 | V57: 3 | X57: 2 | AD57: 1 | AI57: 社畜 （F类） | AJ57: 0.16 | AK57: 休闲模块 | AL57: =Q109 -> 0.220858895 | AM57: =$AJ$57*AL57 -> 0.0353374232
C58: 做西餐 | D58: 4 | E58: =F58/D58 -> 4.75 | F58: 19 | G58: 0.11 | I58: 烹饪模块 | AK58: 更衣模块 | AL58: 0.193251533 | AM58: 0.03092024528
I59: =G58 -> 0.11 | AK59: 影音模块 | AL59: 0.1779141095 | AM59: 0.02846625752
C60: 就餐 | D60: 3 | E60: =F60/D60 -> 3.333333333 | F60: 10 | G60: 0.06 | I60: 餐食模块 | J60: 休闲模块 | AK60: 工作学习模块 | AL60: 0.153374233 | AM60: 0.02453987728
I61: =G60 -> 0.06 | J61: =I61/2 -> 0.03 | AK61: 运动模块 | AL61: 0.141104294 | AM61: 0.02257668704
C62: 仪容仪表 | D62: 4 | E62: =F62/D62 -> 4.5 | F62: 18 | G62: 0.1 | I62: 更衣模块 | J62: 收纳模块 | K62: 洗漱模块 | AK62: 收纳模块 | AL62: 0.1196319015 | AM62: 0.01914110424
I63: =G62 -> 0.1 | J63: =I63/2 -> 0.05 | K63: =J63 -> 0.05 | AK63: 餐食模块 | AL63: 0.1288343555 | AM63: 0.02061349688
C64: 睡觉 | D64: 3 | E64: =F64/D64 -> 4.333333333 | F64: 13 | G64: 0.07 | I64: 睡眠模块 | AK64: 家政模块 | AL64: 0.116564417 | AM64: 0.01865030672
I65: =G64 -> 0.07 | AK65: 宠物模块 | AL65: 0.110429447 | AM65: 0.01766871152
AK66: 酒水茶模块 | AL66: 0.1165644165 | AM66: 0.01865030664
A67: 0.18 | B67: 美妆达人 （D类） | C67: 仪容仪表 | D67: 5 | E67: =F67/D67 -> 5 | F67: 25 | G67: =F67/F86 -> 0.1420454545 | I67: 更衣模块 | J67: 收纳模块 | K67: 洗漱模块 | O67: B | P67: 收纳模块 | Q67: =J68+I70+I72+I78 -> 0.4403409091 | R67: 直接模块 | S67: =Q67/$Q$76 -> 0.3033268102 | U67: 收纳模块 | V67: 洗漱模块 | W67: 更衣模块 | X67: 洗浴模块 | Y67: 睡眠模块 | Z67: 影音模块 | AA67: 运动模块 | AB67: 健身模块 | AC67: 休闲模块 | AK67: 洗浴模块 | AL67: 0.070552147 | AM67: 0.01128834352
I68: =G67 -> 0.1420454545 | J68: =I68/2 -> 0.07102272727 | K68: =J68 -> 0.07102272727 | O68: C | P68: 洗漱模块 | Q68: =K68+K70+I76+J78 -> 0.2670454545 | S68: 0.1839530333 | T68: 收纳模块 | AK68: 烹饪模块 | AL68: 0.0674846625 | AM68: 0.010797546
C69: 美妆 | D69: 4 | E69: =F69/D69 -> 5 | F69: 20 | G69: =F69/F86 -> 0.1136363636 | I69: 收纳模块 | J69: 更衣模块 | K69: 洗漱模块 | O69: A | P69: 更衣模块 | Q69: =I68+J70+M82+K86 -> 0.2642045455 | R69: 核心模块 | S69: 0.1819960861 | T69: 洗漱模块 | U69: 4 | AK69: 洗漱模块 | AL69: 0.061349693 | AM69: 0.00981595088
I70: =G69 -> 0.1136363636 | J70: =I70/2 -> 0.05681818182 | K70: =J70/2 -> 0.02840909091 | O70: D | P70: 洗浴模块 | Q70: =I80+L82+J86 -> 0.1732954545 | R70: 直接模块 | S70: 0.1193737769 | T70: 更衣模块 | U70: 5 | V70: 5
C71: 收纳 | D71: 4.5 | E71: =F71/D71 -> 4.888888889 | F71: 22 | G71: =F71/F86 -> 0.125 | I71: 收纳模块 | O71: E | P71: 睡眠模块 | Q71: =I84 -> 0.1022727273 | R71: 间接模块 | S71: 0.07045009785 | T71: 洗浴模块 | U71: 4 | V71: 4 | W71: 5
I72: =G71 -> 0.125 | O72: F | P72: 影音模块 | Q72: =I74+J82 -> 0.07386363636 | S72: 0.05088062622 | T72: 睡眠模块 | W72: 3
C73: 直播 | D73: 3.2 | E73: =F73/D73 -> 2.5 | F73: 8 | G73: =F73/F86 -> 0.04545454545 | I73: 影音模块 | O73: G | P73: 运动模块 | Q73: =I86 -> 0.07386363636 | S73: 0.05088062622 | T73: 影音模块 | W73: 3 | X73: 1
I74: =G73 -> 0.04545454545 | O74: H | P74: 健身模块 | Q74: =I82 -> 0.05681818182 | S74: 0.03913894325 | T74: 运动模块 | W74: 3 | X74: 3
C75: 洗漱 | D75: 3.8 | E75: =F75/D75 -> 4.736842105 | F75: 18 | G75: =F75/F86 -> 0.1022727273 | I75: 洗漱模块 | P75: 休闲模块 | Q75: =K82 -> 0.02840909091 | R75: 只要A到H 多余去掉 | S75: =SUM(S67:S74) -> 1 | T75: 健身模块 | W75: 3 | X75: 3 | Z75: 3
I76: =G75 -> 0.1022727273 | P76: A-H 总分合计 | Q76: =SUM(Q67:Q74) -> 1.451704545 | T76: 休闲模块 | W76: 2 | X76: 1 | Z76: 1 | AB76: 3
C77: 美容护肤 | D77: 4.7 | E77: =F77/D77 -> 4.893617021 | F77: 23 | G77: =F77/F86 -> 0.1306818182 | I77: 收纳模块 | J77: 洗漱模块
I78: =G77 -> 0.1306818182 | J78: =I78/2 -> 0.06534090909
C79: 泡澡 | D79: 4.2 | E79: =F79/D79 -> 4.523809524 | F79: 19 | G79: =F79/F86 -> 0.1079545455 | I79: 洗浴模块
I80: =G79 -> 0.1079545455
C81: 平板塑形 | D81: 2.7 | E81: =F81/D81 -> 3.703703704 | F81: 10 | G81: =F81/F86 -> 0.05681818182 | I81: 健身模块 | J81: 影音模块 | K81: 休闲模块 | L81: 洗浴模块 | M81: 更衣模块
I82: =G81 -> 0.05681818182 | J82: =I82/2 -> 0.02840909091 | K82: =J82 -> 0.02840909091 | L82: =K82 -> 0.02840909091 | M82: =L82 -> 0.02840909091
C83: 睡觉 | D83: 3.7 | E83: =F83/D83 -> 4.864864865 | F83: 18 | G83: =F83/F86 -> 0.1022727273 | I83: 睡眠模块
I84: =G83 -> 0.1022727273
C85: 跑步 | D85: 3 | E85: =F85/D85 -> 4.333333333 | F85: 13 | G85: =F85/F86 -> 0.07386363636 | I85: 运动模块 | J85: 洗浴模块 | K85: 更衣模块
F86: =SUM(F67:F85) -> 176 | I86: =G85 -> 0.07386363636 | J86: =I86/2 -> 0.03693181818 | K86: =J86 -> 0.03693181818
A88: 0.2 | B88: 御宅 （E类） | C88: 睡眠 | D88: 5 | E88: =F88/D88 -> 5 | F88: 25 | G88: 0.151515151 | I88: 睡眠模块 | O88: B | P88: 影音模块 | Q88: =I91+I93+I105 -> 0.29090909 | R88: 直接模块 | S88: =Q88/$Q$98 -> 0.2285714287 | U88: 影音模块 | V88: 休闲模块 | W88: 睡眠模块 | X88: 园艺模块 | Y88: 展示模块 | Z88: 洗浴模块 | AA88: 餐食模块 | AB88: 宠物模块 | AC88: 收纳模块 | AD88: 工作学习模块
I89: =G88 -> 0.151515151 | O89: C | P89: 休闲模块 | Q89: =J91+J93+K95+J97+I103 -> 0.230303029 | S89: =Q89/$Q$98 -> 0.1809523806 | T89: 影音模块
C90: 看影视 | D90: 4.8 | E90: =F90/D90 -> 4.166666667 | F90: 20 | G90: 0.121212121 | I90: 影音模块 | J90: 休闲模块 | O90: A | P90: 睡眠模块 | Q90: =I89+J103 -> 0.181818181 | R90: 核心模块 | S90: =Q90/$Q$98 -> 0.1428571427 | T90: 休闲模块 | U90: 4
I91: =G90 -> 0.121212121 | J91: =I91/2 -> 0.0606060605 | O91: D | P91: 园艺模块 | Q91: =I107 -> 0.133333333 | R91: 直接模块 | S91: =Q95/$Q$98 -> 0.07142857098 | T91: 睡眠模块 | U91: 5 | V91: 5
C92: 玩电脑游戏 | D92: 4.7 | E92: =F92/D92 -> 2.127659574 | F92: 10 | G92: 0.06060606 | I92: 影音模块 | J92: 休闲模块 | O92: E | P92: 展示模块 | Q92: =K105+J107 -> 0.121212121 | R92: 间接模块 | S92: =Q92/$Q$98 -> 0.09523809543 | T92: 园艺模块 | U92: 4 | V92: 4 | W92: 5
I93: =G92 -> 0.06060606 | J93: =I93/2 -> 0.03030303 | O93: F | P93: 洗浴模块 | Q93: =I101 -> 0.115151515 | S93: =Q96/$Q$98 -> 0.06190476191 | T93: 展示模块 | U93: 3 | W93: 3 | X93: 3
C94: 阅读 | D94: 3.1 | E94: =F94/D94 -> 2.580645161 | F94: 8 | G94: 0.048484848 | I94: 工作学习模块 | J94: 收纳模块 | K94: 休闲模块 | O94: G | P94: 餐食模块 | Q94: =I97 -> 0.109090909 | S94: =Q93/$Q$98 -> 0.09047619069 | T94: 洗浴模块 | W94: 3
I95: =G94 -> 0.048484848 | J95: =I95/2 -> 0.024242424 | K95: =J95 -> 0.024242424 | O95: H | P95: 宠物模块 | Q95: =I99 -> 0.09090909 | S95: =Q94/$Q$98 -> 0.08571428596 | T95: 餐食模块 | V95: 3 | W95: 3
C96: 就餐 | D96: 4.2 | E96: =F96/D96 -> 4.285714286 | F96: 18 | G96: 0.109090909 | I96: 餐食模块 | J96: 休闲模块 | P96: 收纳模块 | Q96: =J95+J105 -> 0.0787878785 | R96: 只要A到H 多余去掉 | S96: =SUM(S88:S95) -> 0.957142857 | T96: 宠物模块 | W96: 2
I97: =G96 -> 0.109090909 | J97: =I97/2 -> 0.0545454545 | P97: 工作学习模块 | Q97: =I95 -> 0.048484848 | T97: 收纳模块 | U97: 3 | V97: 1 | W97: 2 | Y97: 1
C98: 养猫 | D98: 4.9 | E98: =F98/D98 -> 3.06122449 | F98: 15 | G98: 0.09090909 | I98: 宠物模块 | P98: A-H 总分合计 | Q98: =SUM(Q88:Q95) -> 1.272727268 | T98: 工作学习模块 | V98: 3 | W98: 2 | AC98: 3
I99: =G98 -> 0.09090909
C100: 泡澡 | D100: 4.6 | E100: =F100/D100 -> 4.130434783 | F100: 19 | G100: 0.115151515 | I100: 洗浴模块
I101: =G100 -> 0.115151515
C102: 小憩 | D102: 3.1 | E102: =F102/D102 -> 3.225806452 | F102: 10 | G102: 0.06060606 | I102: 休闲模块 | J102: 睡眠模块
I103: =G102 -> 0.06060606 | J103: =I103/2 -> 0.03030303
C104: 追星 | D104: 4.1 | E104: =F104/D104 -> 4.390243902 | F104: 18 | G104: 0.109090909 | I104: 影音模块 | J104: 收纳模块 | K104: 展示模块
I105: =G104 -> 0.109090909 | J105: =I105/2 -> 0.0545454545 | K105: =J105 -> 0.0545454545
C106: 种花 | D106: 3.4 | E106: =F106/D106 -> 6.470588235 | F106: 22 | G106: 0.133333333 | I106: 园艺模块 | J106: 展示模块
I107: =G106 -> 0.133333333 | J107: =I107/2 -> 0.0666666665
A109: 0.16 | B109: 社畜 （F类） | C109: 工作学习 | D109: 5 | E109: =F109/D109 -> 5 | F109: 25 | G109: 0.153374233 | I109: 工作学习模块 | O109: A | P109: 休闲模块 | Q109: =I114+J118+J124 -> 0.220858895 | R109: 直接模块 | S109: =Q109/$Q$122 -> 0.1764705882 | U109: 休闲模块 | V109: 更衣模块 | W109: 影音模块 | X109: 工作学习模块 | Y109: 运动模块 | Z109: 收纳模块 | AA109: 餐食模块 | AB109: 家政模块 | AC109: 宠物模块 | AD109: 酒水茶模块 | AE109: 洗浴模块 | AF109: 烹饪模块 | AG109: 洗漱模块
I110: =G109 -> 0.153374233 | O110: B | P110: 更衣模块 | Q110: =I112+K120 -> 0.193251533 | S110: 0.1544117646 | T110: 休闲模块
C111: 仪容仪表 | D111: 4.7 | E111: =F111/D111 -> 4.255319149 | F111: 20 | G111: 0.122699386 | I111: 更衣模块 | J111: 收纳模块 | K111: 洗漱模块 | O111: C | P111: 影音模块 | Q111: =M114+I118 -> 0.1779141095 | S111: 0.1421568624 | T111: 更衣模块 | U111: 4
I112: =G111 -> 0.122699386 | J112: =I112/2 -> 0.061349693 | K112: =J112 -> 0.061349693 | O112: D | P112: 工作学习模块 | Q112: =I110 -> 0.153374233 | R112: 核心模块 | S112: 0.1225490199 | T112: 影音模块 | U112: 4 | V112: 4
C113: 微聚会 | D113: 4.9 | E113: =F113/D113 -> 4.489795918 | F113: 22 | G113: 0.134969325 | I113: 休闲模块 | J113: 餐食模块 | K113: 烹饪模块 | L113: 酒水茶模块 | M113: 影音模块 | O113: E | P113: 运动模块 | Q113: =I120 -> 0.141104294 | R113: 间接模块 | S113: 0.112745098 | T113: 工作学习模块 | U113: 5 | V113: 5 | W113: 5
I114: =G113 -> 0.134969325 | J114: =I114/2 -> 0.0674846625 | K114: =J114 -> 0.0674846625 | L114: =K114 -> 0.0674846625 | M114: =L114 -> 0.0674846625 | O114: F | P114: 收纳模块 | Q114: =J112+J122 -> 0.1196319015 | S114: 0.09558823531 | T114: 运动模块 | V114: 3 | X114: 3
C115: 喝咖啡 | D115: 3.2 | E115: =F115/D115 -> 2.5 | F115: 8 | G115: 0.049079754 | I115: 酒水茶模块 | O115: G | P115: 餐食模块 | Q115: =J114+I124 -> 0.1288343555 | S115: 0.1029411765 | T115: 收纳模块 | V115: 3 | X115: 3
I116: =G115 -> 0.049079754 | O116: H | P116: 家政模块 | Q116: =I122 -> 0.116564417 | S116: 0.09313725504 | T116: 餐食模块 | U116: 3 | W116: 1 | X116: 3
C117: 看影视 | D117: 4.5 | E117: =F117/D117 -> 4 | F117: 18 | G117: 0.110429447 | I117: 影音模块 | J117: 休闲模块 | P117: 宠物模块 | Q117: =I126 -> 0.110429447 | R117: 只要A到H 多余去掉 | S117: =SUM(S109:S116) -> 1 | T117: 家政模块 | X117: 2 | Z117: 3
I118: =G117 -> 0.110429447 | J118: =I118/2 -> 0.0552147235 | P118: 酒水茶模块 | Q118: =L114+I116 -> 0.1165644165 | T118: 宠物模块 | X118: 2
C119: 跑步 | D119: 4.3 | E119: =F119/D119 -> 5.348837209 | F119: 23 | G119: 0.141104294 | I119: 运动模块 | J119: 洗浴模块 | K119: 更衣模块 | P119: 洗浴模块 | Q119: =J120 -> 0.070552147 | T119: 酒水茶模块 | U119: 3 | W119: 1 | X119: 2 | AA119: 1
I120: =G119 -> 0.141104294 | J120: =I120/2 -> 0.070552147 | K120: =J120 -> 0.070552147 | P120: 烹饪模块 | Q120: =K114 -> 0.0674846625 | T120: 洗浴模块 | X120: 2 | Y120: 3
C121: 洗干熨衣 | D121: 3.8 | E121: =F121/D121 -> 5 | F121: 19 | G121: 0.116564417 | I121: 家政模块 | J121: 收纳模块 | P121: 洗漱模块 | Q121: =K112 -> 0.061349693 | T121: 烹饪模块 | U121: 3 | W121: 1 | X121: 2 | AA121: 1 | AD121: 1
I122: =G121 -> 0.116564417 | J122: =I122/2 -> 0.0582822085 | P122: A-H 总分合计 | Q122: =SUM(Q109:Q116) -> 1.251533739 | T122: 洗漱模块 | V122: 3 | X122: 2 | Z122: 1
C123: 就餐 | D123: 3.2 | E123: =F123/D123 -> 3.125 | F123: 10 | G123: 0.061349693 | I123: 餐食模块 | J123: 休闲模块
I124: =G123 -> 0.061349693 | J124: =I124/2 -> 0.0306748465
C125: 养猫 | D125: 4.2 | E125: =F125/D125 -> 4.285714286 | F125: 18 | G125: 0.110429447 | I125: 宠物模块
I126: =G125 -> 0.110429447

Sheet 上海+85后_老大改铲屎官
A1: 上海 | B1: 85后
B2: 人设——行为算法 | I2: 行为——功能模块算法 | T2: 模块——模块关系算法 | AI2: 公区模块算法
B3: 人设标签 | C3: 行为标签 | D3: 权重 | E3: 频次 | F3: 总分 | G3: 标准值 | I3: 直接模块 | J3: 间接模块 | O3: 排名 | P3: 模块标签 | Q3: 总分 | R3: 模块类型 | S3: A-H占比 | AL3: 原值 | AM3: 加权后的值 | AN3: 公区模块 | AO3: 总分 | AP3: 排名 | AQ3: 调取 6 个3d模型
A4: 0.16 | B4: 铲屎官 （A类） | C4: 养猫 | D4: 5 | E4: =F4/D4 -> 5 | F4: 25 | G4: 0.1666666667 | I4: 宠物模块 | O4: B | P4: 休闲模块 | Q4: =J7+K9+I13+J15+K21 -> 0.3 | R4: 直接模块 | S4: =Q4/$Q$13 -> 0.2264150943 | U4: 休闲模块 | V4: 影音模块 | W4: 工作学习模块 | X4: 宠物模块 | Y4: 收纳模块 | Z4: 睡眠模块 | AA4: 洗浴模块 | AB4: 家政模块 | AC4: 洗漱模块 | AI4: 铲屎官 （A类） | AJ4: =A4 -> 0.16 | AK4: 休闲模块 | AL4: =Q4 -> 0.3 | AM4: =$AJ$4*AL4 -> 0.048 | AN4: 影音模块 | AO4: =AM5+AM13+AM28+AM39+AM43+AM55 -> 0.2216431512 | AP4: 1 | AQ4: (调取3d模型)
I5: =G4 -> 0.1666666667 | O5: C | P5: 影音模块 | Q5: =I7+I15 -> 0.2266666667 | S5: 0.1710691824 | T5: 休闲模块 | AK5: 影音模块 | AL5: 0.2266666667 | AM5: =$AJ$4*AL5 -> 0.03626666667 | AN5: 休闲模块 | AO5: =AM4+AM14+AM27+AM42+AM44+AM53 -> 0.2055446198 | AP5: 2 | AQ5: (调取3d模型)
C6: 看影视 | D6: 4 | E6: =F6/D6 -> 5 | F6: 20 | G6: 0.1333333333 | I6: 影音模块 | J6: 休闲模块 | O6: D | P6: 工作学习模块 | Q6: =I9+I21 -> 0.1733333333 | S6: 0.1308176101 | T6: 影音模块 | U6: 4 | AK6: 工作学习模块 | AL6: 0.1733333333 | AM6: =$AJ$4*AL6 -> 0.02773333333 | AN6: 收纳模块 | AO6: =AM8+AM17+AM32+AM34+AM48+AM58 -> 0.1610600436 | AP6: 3 | AQ6: (调取3d模型)
I7: =G6 -> 0.1333333333 | J7: =I7/2 -> 0.06666666667 | O7: A | P7: 宠物模块 | Q7: =I5 -> 0.1666666667 | R7: 核心模块 | S7: 0.1257861635 | T7: 工作学习模块 | U7: 4 | V7: 4 | AK7: 宠物模块 | AL7: 0.1666666667 | AM7: =$AJ$4*AL7 -> 0.02666666667 | AN7: 洗浴模块 | AO7: =AM10+AM23+AM37+AM49+AM63 -> 0.1497864494 | AP7: 4 | AQ7: (公区没有此模块，跳过)
C8: 阅读 | D8: 4 | E8: =F8/D8 -> 4.5 | F8: 18 | G8: 0.12 | I8: 工作学习模块 | J8: 收纳模块 | K8: 休闲模块 | O8: E | P8: 收纳模块 | Q8: =J9+J21+J23 -> 0.1316666667 | R8: 间接模块 | S8: 0.09937106918 | T8: 宠物模块 | U8: 5 | V8: 5 | W8: 5 | AK8: 收纳模块 | AL8: 0.1316666667 | AM8: =$AJ$4*AL8 -> 0.02106666667 | AN8: 更衣模块 | AO8: =AM24+AM36+AM54 -> 0.1405850179
I9: =G8 -> 0.12 | J9: 0.06 | K9: 0.06 | O9: F | P9: 睡眠模块 | Q9: =J13+I19 -> 0.13 | S9: 0.09811320755 | T9: 收纳模块 | U9: 1 | W9: 3 | X9: 3 | AK9: 睡眠模块 | AL9: 0.13 | AM9: =$AJ$4*AL9 -> 0.0208 | AN9: 运动模块 | AO9: =AM25+AM40+AM57 -> 0.08262214159 | AP9: 5
C10: 淋浴 | D10: 4.5 | E10: =F10/D10 -> 3.555555556 | F10: 16 | G10: 0.1066666667 | I10: 洗浴模块 | O10: G | P10: 洗浴模块 | Q10: =I11 -> 0.1066666667 | S10: 0.08050314465 | T10: 睡眠模块 | U10: 3 | X10: 3 | AK10: 洗浴模块 | AL10: 0.1066666667 | AM10: =$AJ$4*AL10 -> 0.01706666667 | AN10: 工作学习模块 | AO10: =AM6+AM16+AM52+AM56 -> 0.07930351355 | AP10: 6
I11: =G10 -> 0.1066666667 | O11: H | P11: 家政模块 | Q11: =I23 -> 0.09 | S11: 0.0679245283 | T11: 洗浴模块 | X11: 3 | AK11: 家政模块 | AL11: 0.09 | AM11: =$AJ$4*AL11 -> 0.0144 | AN11: 洗漱模块 | AO11: =AM12+AM33+AM35+AM65 -> 0.0759841327 | AQ11: (公区没有此模块)
C12: 小憩 | D12: 3 | E12: =F12/D12 -> 5 | F12: 15 | G12: 0.1 | I12: 休闲模块 | J12: 睡眠模块 | P12: 洗漱模块 | Q12: =I17 -> 0.06 | R12: 只要A到H 多余去掉 | S12: =SUM(S4:S11) -> 1 | T12: 家政模块 | X12: 2 | Y12: 3 | AK12: 洗漱模块 | AL12: 0.06 | AM12: =$AJ$4*AL12 -> 0.0096 | AN12: 睡眠模块 | AO12: =AM9+AM21+AM30+AM38 -> 0.05630909091 | AQ12: (公区没有此模块)
I13: =G12 -> 0.1 | J13: =I13/2 -> 0.05 | P13: A-H 总分合计 | Q13: =SUM(Q4:Q11) -> 1.325 | T13: 洗漱模块 | X13: 2 | AI13: 游戏咖 （B类） | AJ13: 0.13 | AK13: 影音模块 | AL13: =Q25 -> 0.49 | AM13: =AL13*$AJ$13 -> 0.0637 | AN13: 宠物模块 | AO13: =AM7+AM46+AM61 -> 0.06251719619
C14: 玩电脑游戏 | D14: 3 | E14: =F14/D14 -> 4.666666667 | F14: 14 | G14: 0.09333333333 | I14: 影音模块 | J14: 休闲模块 | AK14: 休闲模块 | AL14: 0.34 | AM14: 0.0442 | AN14: 餐食模块 | AO14: =AM18+AM31+AM50+AM59 -> 0.05913167868 | AQ14: (公区没有此模块)
I15: =G14 -> 0.09333333333 | J15: =I15/2 -> 0.04666666667 | AK15: 酒水茶模块 | AL15: 0.1366666667 | AM15: 0.01776666667 | AN15: 健身模块 | AO15: =AM26+AM41 -> 0.05369318162
C16: 洗漱 | D16: 4 | E16: =F16/D16 -> 3.25 | F16: 13 | G16: 0.06 | I16: 洗漱模块 | AK16: 工作学习模块 | AL16: 0.1333333333 | AM16: 0.01733333333 | AN16: 酒水茶模块 | AO16: =AM15+AM62 -> 0.03641697331
I17: =G16 -> 0.06 | AK17: 收纳模块 | AL17: 0.1333333333 | AM17: 0.01733333333 | AN17: 烹饪模块 | AO17: =AM19+AM29+AM64 -> 0.035997546
C18: 睡觉 | D18: 3 | E18: =F18/D18 -> 4 | F18: 12 | G18: 0.08 | I18: 睡眠模块 | AK18: 餐食模块 | AL18: 0.05 | AM18: 0.0065 | AN18: 展示模块 | AO18: =AM20+AM47 -> 0.02987575753 | AQ18: (公区没有此模块)
I19: =G18 -> 0.08 | AK19: 烹饪模块 | AL19: 0.05 | AM19: 0.0065 | AN19: 家政模块 | AO19: =AM11+AM60 -> 0.03305030672
C20: 工作学习 | D20: 3 | E20: =F20/D20 -> 2.666666667 | F20: 8 | G20: 0.05333333333 | I20: 工作学习模块 | J20: 收纳模块 | K20: 休闲模块 | AK20: 展示模块 | AL20: 0.04333333333 | AM20: 0.005633333333 | AN20: 园艺模块 | AO20: =AM51 -> 0.0266666666
I21: =G20 -> 0.05333333333 | J21: =I21/2 -> 0.02666666667 | K21: =J21 -> 0.02666666667 | AK21: 睡眠模块 | AL21: 0.04 | AM21: 0.0052 | AN21: 手工模块 | AO21: =AM22 -> 0.0026 | AQ21: (公区没有此模块)
C22: 打扫清洁 | D22: 3 | E22: =F22/D22 -> 3 | F22: 9 | G22: 0.09 | I22: 家政模块 | J22: 收纳模块 | AK22: 手工模块 | AL22: 0.02 | AM22: 0.0026
I23: =G22 -> 0.09 | J23: =I23/2 -> 0.045 | AI23: 健身达人 （C类） | AJ23: 0.17 | AK23: 洗浴模块 | AL23: =Q46 -> 0.3953409085 | AM23: =$AJ$23*AL23 -> 0.06720795444
AK24: 更衣模块 | AL24: 0.3653409085 | AM24: 0.06210795445
A25: 0.13 | B25: 游戏咖 （B类） | C25: 玩电脑游戏 | D25: 5 | E25: =F25/D25 -> 5 | F25: 25 | G25: 0.1666666667 | I25: 影音模块 | J25: 休闲模块 | O25: A | P25: 影音模块 | Q25: =I26+I30+M34+I36 -> 0.49 | R25: 核心模块 | S25: =Q25/$Q$35 -> 0.3559322034 | U25: 影音模块 | V25: 休闲模块 | W25: 酒水茶模块 | X25: 工作学习模块 | Y25: 收纳模块 | Z25: 餐食模块 | AA25: 烹饪模块 | AB25: 展示模块 | AC25: 睡眠模块 | AD25: 手工模块 | AK25: 运动模块 | AL25: 0.275 | AM25: 0.04675
I26: =G25 -> 0.1666666667 | J26: =I26/2 -> 0.08333333333 | O26: B | P26: 休闲模块 | Q26: =J26+J30+I34+I44 -> 0.34 | R26: 直接模块 | S26: 0.2469733656 | T26: 影音模块 | AK26: 健身模块 | AL26: 0.255681817 | AM26: 0.04346590889
C27: 工作学习 | D27: 4 | E27: =F27/D27 -> 5 | F27: 20 | G27: 0.1333333333 | I27: 工作学习模块 | O27: C | P27: 酒水茶模块 | Q27: =I32+L34 -> 0.1366666667 | S27: 0.09927360775 | T27: 休闲模块 | U27: 5 | AK27: 休闲模块 | AL27: 0.1578409085 | AM27: 0.02683295445
I28: =G27 -> 0.1333333333 | O28: D | P28: 工作学习模块 | Q28: =I28 -> 0.1333333333 | S28: 0.09685230024 | T28: 酒水茶模块 | U28: 5 | V28: 4 | AK28: 影音模块 | AL28: 0.1278409085 | AM28: 0.02173295445
C29: 看影视 | D29: 4 | E29: =F29/D29 -> 5.75 | F29: 23 | G29: 0.1533333333 | I29: 影音模块 | J29: 休闲模块 | O29: E | P29: 收纳模块 | Q29: =J38+I40+J42 -> 0.1333333333 | R29: 间接模块 | S29: 0.09685230024 | T29: 工作学习模块 | U29: 5 | V29: 4 | W29: 4 | AK29: 烹饪模块 | AL29: 0.11 | AM29: 0.0187
I30: =G29 -> 0.1533333333 | J30: =I30/2 -> 0.07666666667 | O30: F | P30: 餐食模块 | Q30: =J34 -> 0.05 | S30: 0.03631961259 | T30: 收纳模块 | U30: 3 | AK30: 睡眠模块 | AL30: 0.07 | AM30: 0.0119
C31: 喝咖啡 | D31: 3 | E31: =F31/D31 -> 4.333333333 | F31: 13 | G31: 0.08666666667 | I31: 酒水茶模块 | O31: G | P31: 烹饪模块 | Q31: =K34 -> 0.05 | S31: 0.03631961259 | T31: 餐食模块 | U31: 3 | V31: 3 | W31: 1 | AK31: 餐食模块 | AL31: 0.06 | AM31: 0.0102
I32: =G31 -> 0.08666666667 | O32: H | P32: 展示模块 | Q32: =I38+K42 -> 0.04333333333 | S32: 0.03147699758 | T32: 烹饪模块 | U32: 3 | V32: 3 | W32: 1 | Z32: 1 | AK32: 收纳模块 | AL32: 0.05 | AM32: 0.0085
C33: 聚会 | D33: 4.5 | E33: =F33/D33 -> 3.333333333 | F33: 15 | G33: 0.1 | I33: 休闲模块 | J33: 餐食模块 | K33: 烹饪模块 | L33: 酒水茶模块 | M33: 影音模块 | P33: 睡眠模块 | Q33: =J44 -> 0.04 | R33: 只要A到H 多余去掉 | S33: =SUM(S25:S32) -> 1 | T33: 展示模块 | U33: 2 | Y33: 3 | AK33: 洗漱模块 | AL33: 0.05 | AM33: 0.0085
I34: =G33 -> 0.1 | J34: =I34/2 -> 0.05 | K34: =J34 -> 0.05 | L34: =K34 -> 0.05 | M34: =L34 -> 0.05 | P34: 手工模块 | Q34: =I42 -> 0.02 | T34: 睡眠模块 | U34: 2 | V34: 3 | AI34: 美妆达人 （D类） | AJ34: 0.18 | AK34: 收纳模块 | AL34: =Q67 -> 0.4403409091 | AM34: =$AJ$34*AL34 -> 0.07926136364
C35: 直播 | D35: 4 | E35: =F35/D35 -> 4.5 | F35: 18 | G35: 0.12 | I35: 影音模块 | P35: A-H 总分合计 | Q35: =SUM(Q25:Q32) -> 1.376666667 | T35: 手工模块 | U35: 2 | Y35: 3 | AB35: 3 | AK35: 洗漱模块 | AL35: 0.2670454545 | AM35: 0.04806818182
I36: =G35 -> 0.12 | AK36: 更衣模块 | AL36: 0.2642045455 | AM36: 0.04755681818
C37: 收藏 | D37: 2 | E37: =F37/D37 -> 2.5 | F37: 5 | G37: 0.03333333333 | I37: 展示模块 | J37: 收纳模块 | AK37: 洗浴模块 | AL37: 0.1732954545 | AM37: 0.03119318182
I38: =G37 -> 0.03333333333 | J38: =I38/2 -> 0.01666666667 | AK38: 睡眠模块 | AL38: 0.1022727273 | AM38: 0.01840909091
C39: 收纳 | D39: 4 | E39: =F39/D39 -> 4 | F39: 16 | G39: 0.1066666667 | I39: 收纳模块 | AK39: 影音模块 | AL39: 0.07386363636 | AM39: 0.01329545455
I40: =G39 -> 0.1066666667 | AK40: 运动模块 | AL40: 0.07386363636 | AM40: 0.01329545455
C41: 做模型 | D41: 2 | E41: =F41/D41 -> 1.5 | F41: 3 | G41: 0.02 | I41: 手工模块 | J41: 收纳模块 | K41: 展示模块 | AK41: 健身模块 | AL41: 0.05681818182 | AM41: 0.01022727273
I42: =G41 -> 0.02 | J42: =I42/2 -> 0.01 | K42: =J42 -> 0.01 | AK42: 休闲模块 | AL42: 0.02840909091 | AM42: 0.005113636364
C43: 小憩 | D43: 3.5 | E43: =F43/D43 -> 3.428571429 | F43: 12 | G43: 0.08 | I43: 休闲模块 | J43: 睡眠模块 | AI43: 御宅 （E类） | AJ43: 0.2 | AK43: 影音模块 | AL43: =Q88 -> 0.29090909 | AM43: =$AJ$43*AL43 -> 0.058181818
I44: =G43 -> 0.08 | J44: =I44/2 -> 0.04 | AK44: 休闲模块 | AL44: =Q89 -> 0.230303029 | AM44: 0.0460606058
AK45: 睡眠模块 | AL45: =Q90 -> 0.181818181 | AM45: 0.0363636362
A46: 0.17 | B46: 健身达人 （C类） | C46: 平板塑形 | D46: 5 | E46: =F46/D46 -> 5 | F46: 25 | G46: 0.142045454 | I46: 健身模块 | J46: 影音模块 | K46: 休闲模块 | L46: 洗浴模块 | M46: 更衣模块 | O46: B | P46: 洗浴模块 | Q46: =L47+L49+J51+J53+J55+I57 -> 0.3953409085 | R46: 直接模块 | S46: =Q46/$Q$57 -> 0.2250032339 | U46: 洗浴模块 | V46: 更衣模块 | W46: 运动模块 | X46: 健身模块 | Y46: 休闲模块 | Z46: 影音模块 | AA46: 烹饪模块 | AB46: 睡眠模块 | AC46: 餐食模块 | AD46: 收纳模块 | AE46: 洗漱模块 | AK46: 宠物模块 | AL46: =Q95 -> 0.09090909 | AM46: 0.018181818
I47: =G46 -> 0.142045454 | J47: =I47/2 -> 0.071022727 | K47: =J47 -> 0.071022727 | L47: =K47 -> 0.071022727 | M47: =L47 -> 0.071022727 | O47: C | P47: 更衣模块 | Q47: =M47+M49+K51+K53+K55+I63 -> 0.3653409085 | S47: 0.2079291166 | T47: 洗浴模块 | AK47: 展示模块 | AL47: =Q92 -> 0.121212121 | AM47: 0.0242424242
C48: 大器械健身 | D48: 5 | E48: =F48/D48 -> 4 | F48: 20 | G48: 0.113636363 | I48: 健身模块 | J48: 影音模块 | K48: 休闲模块 | L48: 洗浴模块 | M48: 更衣模块 | O48: D | P48: 运动模块 | Q48: =I51+I53+I55 -> 0.275 | S48: 0.1565127412 | T48: 更衣模块 | U48: 4 | AK48: 收纳模块 | AL48: =Q96 -> 0.0787878785 | AM48: 0.0157575757
I49: =G48 -> 0.113636363 | J49: =I49/2 -> 0.0568181815 | K49: =J49 -> 0.0568181815 | L49: =K49 -> 0.0568181815 | M49: =L49 -> 0.0568181815 | O49: A | P49: 健身模块 | Q49: =I47+I49 -> 0.255681817 | R49: 核心模块 | S49: 0.1455180439 | T49: 运动模块 | U49: 4 | V49: 4 | AK49: 洗浴模块 | AL49: =Q93 -> 0.115151515 | AM49: 0.023030303
C50: 跑步 | D50: 5 | E50: =F50/D50 -> 4.4 | F50: 22 | G50: 0.125 | I50: 运动模块 | J50: 洗浴模块 | K50: 更衣模块 | O50: E | P50: 休闲模块 | Q50: =K47+K49+J61 -> 0.1578409085 | R50: 间接模块 | S50: 0.08983313915 | T50: 健身模块 | U50: 5 | V50: 5 | W50: 5 | AK50: 餐食模块 | AL50: =Q94 -> 0.109090909 | AM50: 0.0218181818
I51: =G50 -> 0.125 | J51: =I51/2 -> 0.0625 | K51: =J51 -> 0.0625 | O51: F | P51: 影音模块 | Q51: =J47+J49 -> 0.1278409085 | S51: 0.07275902193 | T51: 休闲模块 | U51: 1 | V51: 1 | X51: 3 | AK51: 园艺模块 | AL51: =Q91 -> 0.133333333 | AM51: 0.0266666666
C52: 打篮球 | D52: 3 | E52: =F52/D52 -> 2.666666667 | F52: 8 | G52: 0.05 | I52: 运动模块 | J52: 洗浴模块 | K52: 更衣模块 | O52: G | P52: 烹饪模块 | Q52: =I59 -> 0.11 | S52: 0.06260509649 | T52: 影音模块 | U52: 1 | V52: 1 | X52: 3 | AK52: 工作学习模块 | AL52: =Q97 -> 0.048484848 | AM52: 0.0096969696
I53: =G52 -> 0.05 | J53: =I53/2 -> 0.025 | K53: =J53 -> 0.025 | O53: H | P53: 睡眠模块 | Q53: =I65 -> 0.07 | S53: 0.03983960686 | T53: 烹饪模块 | X53: 3 | AI53: 社畜 （F类） | AJ53: 0.16 | AK53: 休闲模块 | AL53: =Q109 -> 0.220858895 | AM53: =$AJ$53*AL53 -> 0.0353374232
C54: 游泳 | D54: 4.2 | E54: =F54/D54 -> 4.285714286 | F54: 18 | G54: 0.1 | I54: 运动模块 | J54: 洗浴模块 | K54: 更衣模块 | P54: 餐食模块 | Q54: =I61 -> 0.06 | R54: 只要A到H 多余去掉 | S54: =SUM(S46:S53) -> 1 | T54: 睡眠模块 | X54: 2 | AK54: 更衣模块 | AL54: 0.193251533 | AM54: 0.03092024528
I55: =G54 -> 0.1 | J55: =I55/2 -> 0.05 | K55: =J55 -> 0.05 | P55: 收纳模块 | Q55: =J63 -> 0.05 | T55: 餐食模块 | X55: 2 | Y55: 3 | AK55: 影音模块 | AL55: 0.1779141095 | AM55: 0.02846625752
C56: 淋浴 | D56: 4.6 | E56: =F56/D56 -> 5 | F56: 23 | G56: 0.13 | I56: 洗浴模块 | P56: 洗漱模块 | Q56: =K63 -> 0.05 | T56: 收纳模块 | V56: 3 | X56: 2 | AK56: 工作学习模块 | AL56: 0.153374233 | AM56: 0.02453987728
I57: =G56 -> 0.13 | P57: A-H 总分合计 | Q57: =SUM(Q46:Q53) -> 1.757045451 | T57: 洗漱模块 | V57: 3 | X57: 2 | AD57: 1 | AK57: 运动模块 | AL57: 0.141104294 | AM57: 0.02257668704
C58: 做西餐 | D58: 4 | E58: =F58/D58 -> 4.75 | F58: 19 | G58: 0.11 | I58: 烹饪模块 | AK58: 收纳模块 | AL58: 0.1196319015 | AM58: 0.01914110424
I59: =G58 -> 0.11 | AK59: 餐食模块 | AL59: 0.1288343555 | AM59: 0.02061349688
C60: 就餐 | D60: 3 | E60: =F60/D60 -> 3.333333333 | F60: 10 | G60: 0.06 | I60: 餐食模块 | J60: 休闲模块 | AK60: 家政模块 | AL60: 0.116564417 | AM60: 0.01865030672
I61: =G60 -> 0.06 | J61: =I61/2 -> 0.03 | AK61: 宠物模块 | AL61: 0.110429447 | AM61: 0.01766871152
C62: 仪容仪表 | D62: 4 | E62: =F62/D62 -> 4.5 | F62: 18 | G62: 0.1 | I62: 更衣模块 | J62: 收纳模块 | K62: 洗漱模块 | AK62: 酒水茶模块 | AL62: 0.1165644165 | AM62: 0.01865030664
I63: =G62 -> 0.1 | J63: =I63/2 -> 0.05 | K63: =J63 -> 0.05 | AK63: 洗浴模块 | AL63: 0.070552147 | AM63: 0.01128834352
C64: 睡觉 | D64: 3 | E64: =F64/D64 -> 4.333333333 | F64: 13 | G64: 0.07 | I64: 睡眠模块 | AK64: 烹饪模块 | AL64: 0.0674846625 | AM64: 0.010797546
I65: =G64 -> 0.07 | AK65: 洗漱模块 | AL65: 0.061349693 | AM65: 0.00981595088
A67: 0.18 | B67: 美妆达人 （D类） | C67: 仪容仪表 | D67: 5 | E67: =F67/D67 -> 5 | F67: 25 | G67: =F67/F86 -> 0.1420454545 | I67: 更衣模块 | J67: 收纳模块 | K67: 洗漱模块 | O67: B | P67: 收纳模块 | Q67: =J68+I70+I72+I78 -> 0.4403409091 | R67: 直接模块 | S67: =Q67/$Q$76 -> 0.3033268102 | U67: 收纳模块 | V67: 洗漱模块 | W67: 更衣模块 | X67: 洗浴模块 | Y67: 睡眠模块 | Z67: 影音模块 | AA67: 运动模块 | AB67: 健身模块 | AC67: 休闲模块
I68: =G67 -> 0.1420454545 | J68: =I68/2 -> 0.07102272727 | K68: =J68 -> 0.07102272727 | O68: C | P68: 洗漱模块 | Q68: =K68+K70+I76+J78 -> 0.2670454545 | S68: 0.1839530333 | T68: 收纳模块
C69: 美妆 | D69: 4 | E69: =F69/D69 -> 5 | F69: 20 | G69: =F69/F86 -> 0.1136363636 | I69: 收纳模块 | J69: 更衣模块 | K69: 洗漱模块 | O69: A | P69: 更衣模块 | Q69: =I68+J70+M82+K86 -> 0.2642045455 | R69: 核心模块 | S69: 0.1819960861 | T69: 洗漱模块 | U69: 4
I70: =G69 -> 0.1136363636 | J70: =I70/2 -> 0.05681818182 | K70: =J70/2 -> 0.02840909091 | O70: D | P70: 洗浴模块 | Q70: =I80+L82+J86 -> 0.1732954545 | R70: 直接模块 | S70: 0.1193737769 | T70: 更衣模块 | U70: 5 | V70: 5
C71: 收纳 | D71: 4.5 | E71: =F71/D71 -> 4.888888889 | F71: 22 | G71: =F71/F86 -> 0.125 | I71: 收纳模块 | O71: E | P71: 睡眠模块 | Q71: =I84 -> 0.1022727273 | R71: 间接模块 | S71: 0.07045009785 | T71: 洗浴模块 | U71: 4 | V71: 4 | W71: 5
I72: =G71 -> 0.125 | O72: F | P72: 影音模块 | Q72: =I74+J82 -> 0.07386363636 | S72: 0.05088062622 | T72: 睡眠模块 | W72: 3
C73: 直播 | D73: 3.2 | E73: =F73/D73 -> 2.5 | F73: 8 | G73: =F73/F86 -> 0.04545454545 | I73: 影音模块 | O73: G | P73: 运动模块 | Q73: =I86 -> 0.07386363636 | S73: 0.05088062622 | T73: 影音模块 | W73: 3 | X73: 1
I74: =G73 -> 0.04545454545 | O74: H | P74: 健身模块 | Q74: =I82 -> 0.05681818182 | S74: 0.03913894325 | T74: 运动模块 | W74: 3 | X74: 3
C75: 洗漱 | D75: 3.8 | E75: =F75/D75 -> 4.736842105 | F75: 18 | G75: =F75/F86 -> 0.1022727273 | I75: 洗漱模块 | P75: 休闲模块 | Q75: =K82 -> 0.02840909091 | R75: 只要A到H 多余去掉 | S75: =SUM(S67:S74) -> 1 | T75: 健身模块 | W75: 3 | X75: 3 | Z75: 3
I76: =G75 -> 0.1022727273 | P76: A-H 总分合计 | Q76: =SUM(Q67:Q74) -> 1.451704545 | T76: 休闲模块 | W76: 2 | X76: 1 | Z76: 1 | AB76: 3
C77: 美容护肤 | D77: 4.7 | E77: =F77/D77 -> 4.893617021 | F77: 23 | G77: =F77/F86 -> 0.1306818182 | I77: 收纳模块 | J77: 洗漱模块
I78: =G77 -> 0.1306818182 | J78: =I78/2 -> 0.06534090909
C79: 泡澡 | D79: 4.2 | E79: =F79/D79 -> 4.523809524 | F79: 19 | G79: =F79/F86 -> 0.1079545455 | I79: 洗浴模块
I80: =G79 -> 0.1079545455
C81: 平板塑形 | D81: 2.7 | E81: =F81/D81 -> 3.703703704 | F81: 10 | G81: =F81/F86 -> 0.05681818182 | I81: 健身模块 | J81: 影音模块 | K81: 休闲模块 | L81: 洗浴模块 | M81: 更衣模块
I82: =G81 -> 0.05681818182 | J82: =I82/2 -> 0.02840909091 | K82: =J82 -> 0.02840909091 | L82: =K82 -> 0.02840909091 | M82: =L82 -> 0.02840909091
C83: 睡觉 | D83: 3.7 | E83: =F83/D83 -> 4.864864865 | F83: 18 | G83: =F83/F86 -> 0.1022727273 | I83: 睡眠模块
I84: =G83 -> 0.1022727273
C85: 跑步 | D85: 3 | E85: =F85/D85 -> 4.333333333 | F85: 13 | G85: =F85/F86 -> 0.07386363636 | I85: 运动模块 | J85: 洗浴模块 | K85: 更衣模块
F86: =SUM(F67:F85) -> 176 | I86: =G85 -> 0.07386363636 | J86: =I86/2 -> 0.03693181818 | K86: =J86 -> 0.03693181818
A88: 0.2 | B88: 御宅 （E类） | C88: 睡眠 | D88: 5 | E88: =F88/D88 -> 5 | F88: 25 | G88: 0.151515151 | I88: 睡眠模块 | O88: B | P88: 影音模块 | Q88: =I91+I93+I105 -> 0.29090909 | R88: 直接模块 | S88: =Q88/$Q$98 -> 0.2285714287 | U88: 影音模块 | V88: 休闲模块 | W88: 睡眠模块 | X88: 园艺模块 | Y88: 展示模块 | Z88: 洗浴模块 | AA88: 餐食模块 | AB88: 宠物模块 | AC88: 收纳模块 | AD88: 工作学习模块
I89: =G88 -> 0.151515151 | O89: C | P89: 休闲模块 | Q89: =J91+J93+K95+J97+I103 -> 0.230303029 | S89: =Q89/$Q$98 -> 0.1809523806 | T89: 影音模块
C90: 看影视 | D90: 4.8 | E90: =F90/D90 -> 4.166666667 | F90: 20 | G90: 0.121212121 | I90: 影音模块 | J90: 休闲模块 | O90: A | P90: 睡眠模块 | Q90: =I89+J103 -> 0.181818181 | R90: 核心模块 | S90: =Q90/$Q$98 -> 0.1428571427 | T90: 休闲模块 | U90: 4
I91: =G90 -> 0.121212121 | J91: =I91/2 -> 0.0606060605 | O91: D | P91: 园艺模块 | Q91: =I107 -> 0.133333333 | R91: 直接模块 | S91: =Q95/$Q$98 -> 0.07142857098 | T91: 睡眠模块 | U91: 5 | V91: 5
C92: 玩电脑游戏 | D92: 4.7 | E92: =F92/D92 -> 2.127659574 | F92: 10 | G92: 0.06060606 | I92: 影音模块 | J92: 休闲模块 | O92: E | P92: 展示模块 | Q92: =K105+J107 -> 0.121212121 | R92: 间接模块 | S92: =Q92/$Q$98 -> 0.09523809543 | T92: 园艺模块 | U92: 4 | V92: 4 | W92: 5
I93: =G92 -> 0.06060606 | J93: =I93/2 -> 0.03030303 | O93: F | P93: 洗浴模块 | Q93: =I101 -> 0.115151515 | S93: =Q96/$Q$98 -> 0.06190476191 | T93: 展示模块 | U93: 3 | W93: 3 | X93: 3
C94: 阅读 | D94: 3.1 | E94: =F94/D94 -> 2.580645161 | F94: 8 | G94: 0.048484848 | I94: 工作学习模块 | J94: 收纳模块 | K94: 休闲模块 | O94: G | P94: 餐食模块 | Q94: =I97 -> 0.109090909 | S94: =Q93/$Q$98 -> 0.09047619069 | T94: 洗浴模块 | W94: 3
I95: =G94 -> 0.048484848 | J95: =I95/2 -> 0.024242424 | K95: =J95 -> 0.024242424 | O95: H | P95: 宠物模块 | Q95: =I99 -> 0.09090909 | S95: =Q94/$Q$98 -> 0.08571428596 | T95: 餐食模块 | V95: 3 | W95: 3
C96: 就餐 | D96: 4.2 | E96: =F96/D96 -> 4.285714286 | F96: 18 | G96: 0.109090909 | I96: 餐食模块 | J96: 休闲模块 | P96: 收纳模块 | Q96: =J95+J105 -> 0.0787878785 | R96: 只要A到H 多余去掉 | S96: =SUM(S88:S95) -> 0.957142857 | T96: 宠物模块 | W96: 2
I97: =G96 -> 0.109090909 | J97: =I97/2 -> 0.0545454545 | P97: 工作学习模块 | Q97: =I95 -> 0.048484848 | T97: 收纳模块 | U97: 3 | V97: 1 | W97: 2 | Y97: 1
C98: 养猫 | D98: 4.9 | E98: =F98/D98 -> 3.06122449 | F98: 15 | G98: 0.09090909 | I98: 宠物模块 | P98: A-H 总分合计 | Q98: =SUM(Q88:Q95) -> 1.272727268 | T98: 工作学习模块 | V98: 3 | W98: 2 | AC98: 3
I99: =G98 -> 0.09090909
C100: 泡澡 | D100: 4.6 | E100: =F100/D100 -> 4.130434783 | F100: 19 | G100: 0.115151515 | I100: 洗浴模块
I101: =G100 -> 0.115151515
C102: 小憩 | D102: 3.1 | E102: =F102/D102 -> 3.225806452 | F102: 10 | G102: 0.06060606 | I102: 休闲模块 | J102: 睡眠模块
I103: =G102 -> 0.06060606 | J103: =I103/2 -> 0.03030303
C104: 追星 | D104: 4.1 | E104: =F104/D104 -> 4.390243902 | F104: 18 | G104: 0.109090909 | I104: 影音模块 | J104: 收纳模块 | K104: 展示模块
I105: =G104 -> 0.109090909 | J105: =I105/2 -> 0.0545454545 | K105: =J105 -> 0.0545454545
C106: 种花 | D106: 3.4 | E106: =F106/D106 -> 6.470588235 | F106: 22 | G106: 0.133333333 | I106: 园艺模块 | J106: 展示模块
I107: =G106 -> 0.133333333 | J107: =I107/2 -> 0.0666666665
A109: 0.16 | B109: 社畜 （F类） | C109: 工作学习 | D109: 5 | E109: =F109/D109 -> 5 | F109: 25 | G109: 0.153374233 | I109: 工作学习模块 | O109: A | P109: 休闲模块 | Q109: =I114+J118+J124 -> 0.220858895 | R109: 直接模块 | S109: =Q109/$Q$122 -> 0.1764705882 | U109: 休闲模块 | V109: 更衣模块 | W109: 影音模块 | X109: 工作学习模块 | Y109: 运动模块 | Z109: 收纳模块 | AA109: 餐食模块 | AB109: 家政模块 | AC109: 宠物模块 | AD109: 酒水茶模块 | AE109: 洗浴模块 | AF109: 烹饪模块 | AG109: 洗漱模块
I110: =G109 -> 0.153374233 | O110: B | P110: 更衣模块 | Q110: =I112+K120 -> 0.193251533 | S110: 0.1544117646 | T110: 休闲模块
C111: 仪容仪表 | D111: 4.7 | E111: =F111/D111 -> 4.255319149 | F111: 20 | G111: 0.122699386 | I111: 更衣模块 | J111: 收纳模块 | K111: 洗漱模块 | O111: C | P111: 影音模块 | Q111: =M114+I118 -> 0.1779141095 | S111: 0.1421568624 | T111: 更衣模块 | U111: 4
I112: =G111 -> 0.122699386 | J112: =I112/2 -> 0.061349693 | K112: =J112 -> 0.061349693 | O112: D | P112: 工作学习模块 | Q112: =I110 -> 0.153374233 | R112: 核心模块 | S112: 0.1225490199 | T112: 影音模块 | U112: 4 | V112: 4
C113: 微聚会 | D113: 4.9 | E113: =F113/D113 -> 4.489795918 | F113: 22 | G113: 0.134969325 | I113: 休闲模块 | J113: 餐食模块 | K113: 烹饪模块 | L113: 酒水茶模块 | M113: 影音模块 | O113: E | P113: 运动模块 | Q113: =I120 -> 0.141104294 | R113: 间接模块 | S113: 0.112745098 | T113: 工作学习模块 | U113: 5 | V113: 5 | W113: 5
I114: =G113 -> 0.134969325 | J114: =I114/2 -> 0.0674846625 | K114: =J114 -> 0.0674846625 | L114: =K114 -> 0.0674846625 | M114: =L114 -> 0.0674846625 | O114: F | P114: 收纳模块 | Q114: =J112+J122 -> 0.1196319015 | S114: 0.09558823531 | T114: 运动模块 | V114: 3 | X114: 3
C115: 喝咖啡 | D115: 3.2 | E115: =F115/D115 -> 2.5 | F115: 8 | G115: 0.049079754 | I115: 酒水茶模块 | O115: G | P115: 餐食模块 | Q115: =J114+I124 -> 0.1288343555 | S115: 0.1029411765 | T115: 收纳模块 | V115: 3 | X115: 3
I116: =G115 -> 0.049079754 | O116: H | P116: 家政模块 | Q116: =I122 -> 0.116564417 | S116: 0.09313725504 | T116: 餐食模块 | U116: 3 | W116: 1 | X116: 3
C117: 看影视 | D117: 4.5 | E117: =F117/D117 -> 4 | F117: 18 | G117: 0.110429447 | I117: 影音模块 | J117: 休闲模块 | P117: 宠物模块 | Q117: =I126 -> 0.110429447 | R117: 只要A到H 多余去掉 | S117: =SUM(S109:S116) -> 1 | T117: 家政模块 | X117: 2 | Z117: 3
I118: =G117 -> 0.110429447 | J118: =I118/2 -> 0.0552147235 | P118: 酒水茶模块 | Q118: =L114+I116 -> 0.1165644165 | T118: 宠物模块 | X118: 2
C119: 跑步 | D119: 4.3 | E119: =F119/D119 -> 5.348837209 | F119: 23 | G119: 0.141104294 | I119: 运动模块 | J119: 洗浴模块 | K119: 更衣模块 | P119: 洗浴模块 | Q119: =J120 -> 0.070552147 | T119: 酒水茶模块 | U119: 3 | W119: 1 | X119: 2 | AA119: 1
I120: =G119 -> 0.141104294 | J120: =I120/2 -> 0.070552147 | K120: =J120 -> 0.070552147 | P120: 烹饪模块 | Q120: =K114 -> 0.0674846625 | T120: 洗浴模块 | X120: 2 | Y120: 3
C121: 洗干熨衣 | D121: 3.8 | E121: =F121/D121 -> 5 | F121: 19 | G121: 0.116564417 | I121: 家政模块 | J121: 收纳模块 | P121: 洗漱模块 | Q121: =K112 -> 0.061349693 | T121: 烹饪模块 | U121: 3 | W121: 1 | X121: 2 | AA121: 1 | AD121: 1
I122: =G121 -> 0.116564417 | J122: =I122/2 -> 0.0582822085 | P122: A-H 总分合计 | Q122: =SUM(Q109:Q116) -> 1.251533739 | T122: 洗漱模块 | V122: 3 | X122: 2 | Z122: 1
C123: 就餐 | D123: 3.2 | E123: =F123/D123 -> 3.125 | F123: 10 | G123: 0.061349693 | I123: 餐食模块 | J123: 休闲模块
I124: =G123 -> 0.061349693 | J124: =I124/2 -> 0.0306748465
C125: 养猫 | D125: 4.2 | E125: =F125/D125 -> 4.285714286 | F125: 18 | G125: 0.110429447 | I125: 宠物模块
I126: =G125 -> 0.110429447

Sheet 例外情况
A1: 排名 | B1: 模块标签 | C1: 总分 | D1: 模块类型
A2: A | B2: 影音模块 | C2: 73.5 | D2: 核心模块 | F2: 功能模块ID | G2: 功能模块标签 | H2: 模块默认推送次序
A3: B | B3: 休闲模块 | C3: 51 | D3: 直接模块 | F3: 1 | G3: 收纳模块 | H3: 7
A4: C | B4: 酒水茶模块 | C4: 20.5 | F4: 2 | G4: 更衣模块 | H4: 6
A5: D | B5: 工作学习模块 | C5: 20 | F5: 3 | G5: 展示模块 | H5: 15
A6: E | B6: 收纳模块 | C6: 20 | D6: 间接模块 | F6: 4 | G6: 工作学习模块 | H6: 11
A7: F | B7: 餐食模块 | C7: 7.5 | F7: 5 | G7: 休闲模块 | H7: 5
A8: G | B8: 睡眠模块 | D8: 若不满8个模块，则去重后，按照默认推送次序 自动补充模块（参考右侧表格） | F8: 6 | G8: 睡眠模块 | H8: 1
A9: H | B9: 洗漱模块 | F9: 7 | G9: 影音模块 | H9: 10
F10: 8 | G10: 宠物模块 | H10: 17
F11: 9 | G11: 运动模块 | H11: 12
F12: 10 | G12: 健身模块 | H12: 13
F13: 11 | G13: 洗漱模块 | H13: 2
F14: 12 | G14: 洗浴模块 | H14: 3
F15: 13 | G15: 餐食模块 | H15: 4
F16: 14 | G16: 烹饪模块 | H16: 8
F17: 15 | G17: 酒水茶模块 | H17: 14
F18: 16 | G18: 家政模块 | H18: 9
F19: 17 | G19: 园艺模块 | H19: 16
F20: 18 | G20: 手工模块 | H20: 18
